bitfinex/quotes_SOLUSD_20240713
["timestamp","ask_amount","ask_price","bid_price","bid_amount"]
[1720852745975,45.0,139.57,139.52,1.43318469]
[1720852746281,21.6,139.59,139.54,11.6]
[1720852746282,45.0,139.58,139.54,11.6]
[1720852746468,65.0,139.58,139.54,11.6]
[1720852747264,10.0,139.57,139.5,15.6212]
[1720852747583,45.0,139.56,139.52,11.6]
[1720852749290,10.0,139.53,139.44,7.1629599]
[1720852749506,93.0626,139.52,139.44,7.1629599]
[1720852749795,10.0,139.51,139.47,11.6]
[1720852750004,45.0,139.5,139.47,11.6]
[1720852750706,45.0,139.5,139.48,11.6]
[1720852750886,45.0,139.51,139.48,11.6]
[1720852751087,45.0,139.51,139.49,11.6]
[1720852751278,20.0,139.52,139.5,11.6]
[1720852751478,20.0,139.54,139.51,11.6]
[1720852751799,20.0,139.54,139.45,1.43368741]
[1720852751800,10.0,139.52,139.45,1.43368741]
[1720852751979,45.0,139.51,139.45,20.0]
[1720852752177,45.0,139.51,139.48,11.6]
[1720852752394,45.0,139.51,139.49,11.6]
[1720852752600,30.0,139.54,139.5,11.6]
[1720852752792,45.0,139.53,139.46,1.43371763]
[1720852753194,45.0,139.53,139.51,11.6]
[1720852753682,45.0,139.53,139.46,1.43367894]
[1720852753882,45.0,139.53,139.5,11.6]
[1720852754602,45.0,139.53,139.51,11.6]
[1720852757313,16.4626,139.56,139.52,11.6]
[1720852757483,10.0,139.58,139.55,11.6]
[1720852757907,10.0,139.58,139.56,11.6]
[1720852758087,10.0,139.58,139.55,11.6]
[1720852758492,38.0626,139.6,139.55,11.6]
[1720852758699,26.4626,139.6,139.56,11.6]
[1720852759013,20.0,139.59,139.56,11.6]
[1720852759194,20.0,139.59,139.57,11.6]
[1720852759401,20.0,139.59,139.56,11.6]
[1720852759601,26.4626,139.6,139.58,11.6]
[1720852759801,29.39721203,139.64,139.59,11.6]
[1720852760008,26.4626,139.64,139.6,11.6]
[1720852760193,16.4626,139.64,139.61,11.6]
[1720852760398,16.4626,139.64,139.62,11.6]
[1720852760910,16.0978,139.66,139.62,11.6]
[1720852761615,16.0978,139.66,139.55,1.43249893]
[1720852761812,16.0978,139.66,139.63,11.6]
[1720852762405,16.0978,139.66,139.62,11.6]
[1720852762624,10.0,139.62,139.54,6.5502]
[1720852762923,21.6,139.6,139.55,11.6]
[1720852763107,10.0,139.58,139.54,11.6]
[1720852763300,20.0,139.57,139.54,11.6]
[1720852763502,45.0,139.56,139.54,11.6]
[1720852763701,45.0,139.56,139.53,11.6]
[1720852764118,45.0,139.56,139.54,11.6]
[1720852765120,45.0,139.56,139.55,11.6]
[1720852767121,45.0,139.56,139.54,11.6]
[1720852768223,45.0,139.56,139.53,11.6]
[1720852770201,20.0,139.55,139.49,15.6212]
[1720852770520,45.0,139.54,139.52,11.6]
[1720852770726,45.0,139.54,139.49,15.6212]
[1720852771025,45.0,139.54,139.52,11.6]
[1720852771425,70.6097,139.54,139.45,16.3963]
[1720852771633,20.0,139.53,139.49,11.6]
[1720852771806,45.0,139.52,139.49,11.6]
[1720852778735,66.6,139.52,139.47,11.6]
[1720852778915,66.6,139.52,139.44,0.6127599]
[1720852779115,66.6,139.52,139.47,11.6]
[1720852779439,10.0,139.5,139.44,0.6127599]
[1720852779622,45.0,139.49,139.46,11.6]
[1720852780017,45.0,139.49,139.44,0.6127599]
[1720852780227,45.0,139.49,139.46,11.6]
[1720852780423,45.0,139.49,139.44,2.04688196]
[1720852780735,45.0,139.49,139.47,11.6]
[1720852784815,45.0,139.49,139.48,11.6]
[1720852785142,10.0,139.52,139.48,11.6]
[1720852785318,10.0,139.52,139.44,13.64683568]
[1720852785319,65.0,139.51,139.49,11.6]
[1720852786214,65.0,139.51,139.48,11.6]
[1720852786841,65.0,139.51,139.45,1.43395936]
[1720852787016,65.0,139.51,139.49,11.6]
[1720852787549,10.0,139.5,139.44,0.6127599]
[1720852787720,10.0,139.48,139.44,0.6127599]
[1720852788143,45.0,139.47,139.44,0.6127599]
[1720852789121,10.0,139.46,139.44,0.6127599]
[1720852789343,45.0,139.45,139.44,0.6127599]
[1720852789729,65.0,139.45,139.44,0.6127599]
[1720852790424,76.6,139.45,139.44,0.6127599]
[1720852793251,65.0,139.45,139.44,0.6127599]
[1720852795563,65.0,139.45,139.44,12.2127599]
[1720852795936,65.0,139.45,139.44,0.6127599]
[1720852804867,76.6,139.45,139.44,0.6127599]
[1720852805034,20.0,139.45,139.44,0.6127599]
[1720852806140,30.0,139.45,139.44,0.6127599]
[1720852806340,75.0,139.45,139.44,0.6127599]
[1720852807143,65.0,139.45,139.44,0.6127599]
[1720852807757,20.0,139.45,139.44,0.6127599]
[1720852809146,65.0,139.45,139.44,0.6127599]
[1720852810656,75.0,139.45,139.44,0.6127599]
[1720852817977,86.6,139.45,139.44,0.6127599]
[1720852818487,75.0,139.45,139.44,0.6127599]
[1720852819674,30.0,139.45,139.44,0.6127599]
[1720852821060,65.0,139.45,139.44,0.6127599]
[1720852822689,20.0,139.45,139.44,0.6127599]
[1720852822980,21.6,139.49,139.44,12.2127599]
[1720852823578,21.6,139.49,139.44,0.6127599]
[1720852823763,21.6,139.49,139.44,12.2127599]
[1720852824081,45.0,139.48,139.44,12.2127599]
[1720852824965,20.0,139.47,139.44,12.2127599]
[1720852825167,45.0,139.46,139.44,12.2127599]
[1720852825866,45.0,139.46,139.44,0.6127599]
[1720852826696,45.0,139.46,139.44,12.2127599]
[1720852830595,45.0,139.46,139.44,0.6127599]
[1720852831116,20.0,139.45,139.44,0.6127599]
[1720852831403,65.0,139.45,139.44,0.6127599]
[1720852833672,21.6,139.49,139.44,12.2127599]
[1720852833872,20.0,139.48,139.44,12.2127599]
[1720852834073,45.0,139.47,139.44,12.2127599]
[1720852834803,45.0,139.47,139.45,11.6]
[1720852835490,45.0,139.47,139.44,12.2127599]
[1720852837214,45.0,139.47,139.44,0.6127599]
[1720852837697,45.0,139.47,139.44,12.2127599]
[1720852839301,45.0,139.47,139.45,11.6]
[1720852839685,10.0,139.49,139.46,11.6]
[1720852840013,45.0,139.48,139.46,11.6]
[1720852840376,12.8873804,139.51,139.46,11.6]
[1720852840699,10.0,139.51,139.48,11.6]
[1720852841205,20.0,139.5,139.48,11.6]
[1720852841804,20.0,139.5,139.47,11.6]
[1720852842007,45.0,139.49,139.47,11.6]
[1720852842816,45.0,139.49,139.48,11.6]
[1720852842981,20.0,139.49,139.48,11.6]
[1720852843589,20.0,139.49,139.45,21.5636]
[1720852843793,10.0,139.51,139.48,11.6]
[1720852843794,20.0,139.5,139.48,11.6]
[1720852844510,20.0,139.52,139.48,11.6]
[1720852844707,45.0,139.51,139.48,11.6]
[1720852844883,45.0,139.51,139.47,11.6]
[1720852845083,20.0,139.5,139.47,11.6]
[1720852845284,45.0,139.49,139.47,11.6]
[1720852846285,45.0,139.49,139.46,11.6]
[1720852846781,45.0,139.49,139.47,11.6]
[1720852850006,55.0,139.49,139.44,0.6127599]
[1720852850315,55.0,139.49,139.45,11.6]
[1720852850695,45.0,139.49,139.46,11.6]
[1720852851005,45.0,139.49,139.47,11.6]
[1720852851213,20.0,139.5,139.47,11.6]
[1720852852502,20.0,139.51,139.47,11.6]
[1720852852693,45.0,139.5,139.47,11.6]
[1720852853814,45.0,139.5,139.44,2.04678764]
[1720852853991,45.0,139.5,139.47,11.6]
[1720852856310,10.0,139.49,139.45,11.6]
[1720852856495,45.0,139.48,139.45,11.6]
[1720852858314,31.6,139.52,139.47,11.6]
[1720852858492,31.6,139.52,139.48,11.6]
[1720852858493,45.0,139.51,139.48,11.6]
[1720852858885,20.0,139.5,139.48,11.6]
[1720852860499,45.0,139.51,139.49,11.6]
[1720852860808,45.0,139.52,139.48,11.6]
[1720852861128,20.0,139.51,139.48,11.6]
[1720852861409,20.0,139.51,139.47,11.6]
[1720852861594,45.0,139.5,139.47,11.6]
[1720852862293,10.0,139.49,139.44,0.6127599]
[1720852862507,45.0,139.48,139.44,0.6127599]
[1720852862805,45.0,139.48,139.45,11.6]
[1720852863005,45.0,139.48,139.44,12.2127599]
[1720852864104,45.0,139.48,139.44,0.6127599]
[1720852864424,45.0,139.48,139.44,12.2127599]
[1720852864804,56.6,139.48,139.44,0.6127599]
[1720852865005,41.6,139.47,139.44,0.6127599]
[1720852865229,45.0,139.46,139.44,0.6127599]
[1720852872743,20.0,139.47,139.45,11.6]
[1720852872936,20.0,139.47,139.44,0.6127599]
[1720852873924,45.0,139.46,139.44,0.6127599]
[1720852874245,20.0,139.47,139.44,0.6127599]
[1720852874542,10.0,139.5,139.44,12.2127599]
[1720852874543,11.6,139.49,139.44,12.2127599]
[1720852874738,65.0,139.48,139.44,12.2127599]
[1720852875322,45.0,139.48,139.44,12.2127599]
[1720852875832,28.61386729,139.52,139.45,13.03416201]
[1720852876148,11.6,139.51,139.46,11.6]
[1720852876445,11.6,139.51,139.45,11.6]
[1720852877129,65.0,139.5,139.45,11.6]
[1720852877329,76.6,139.5,139.45,11.6]
[1720852877717,65.0,139.5,139.45,13.03404569]
[1720852878048,45.0,139.5,139.45,13.03404569]
[1720852878219,45.0,139.5,139.46,11.6]
[1720852878421,56.6,139.51,139.46,11.6]
[1720852878622,11.6,139.5,139.45,11.6]
[1720852879251,11.6,139.5,139.44,23.0194599]
[1720852879448,11.6,139.5,139.45,11.6]
[1720852880646,21.6,139.5,139.45,11.6]
[1720852880825,56.6,139.49,139.44,34.6194599]
[1720852881029,11.6,139.48,139.44,23.0194599]
[1720852882145,11.6,139.48,139.44,0.6127599]
[1720852882338,45.0,139.49,139.44,0.6127599]
[1720852882550,20.0,139.48,139.44,0.6127599]
[1720852883146,31.6,139.48,139.44,0.6127599]
[1720852889747,20.0,139.48,139.44,0.6127599]
[1720852894236,20.0,139.48,139.44,13.64700486]
[1720852894439,11.6,139.5,139.45,11.6]
[1720852894637,20.0,139.49,139.45,11.6]
[1720852895459,11.6,139.5,139.45,11.6]
[1720852895652,20.0,139.49,139.44,12.2127599]
[1720852896236,31.6,139.49,139.44,12.2127599]
[1720852896557,20.0,139.49,139.44,12.2127599]
[1720852899263,20.0,139.49,139.44,0.6127599]
[1720852899560,20.0,139.49,139.44,12.2127599]
[1720852901973,12.91746729,139.52,139.46,15.0785]
[1720852902137,10.0,139.54,139.48,11.6]
[1720852902537,11.6,139.53,139.48,11.6]
[1720852903568,45.0,139.52,139.48,11.6]
[1720852906453,11.6,139.53,139.48,11.6]
[1720852906664,11.6,139.54,139.49,13.03364028]
[1720852906959,20.0,139.53,139.49,11.6]
[1720852907668,31.6,139.53,139.48,11.6]
[1720852908253,45.0,139.52,139.46,15.0785]
[1720852908562,20.0,139.53,139.48,11.6]
[1720852908771,22.94300581,139.55,139.49,11.6]
[1720852908938,56.6,139.54,139.49,11.6]
[1720852909142,20.0,139.53,139.49,11.6]
[1720852911055,2.94300581,139.55,139.49,17.8129]
[1720852911373,11.6,139.56,139.51,11.6]
[1720852911673,45.0,139.55,139.51,11.6]
[1720852912171,11.6,139.56,139.51,11.6]
[1720852912969,20.0,139.55,139.51,11.6]
[1720852914266,20.0,139.55,139.49,6.2129]
[1720852914572,20.0,139.55,139.5,11.6]
[1720852915366,20.0,139.55,139.5,13.03344777]
[1720852915678,20.0,139.57,139.51,28.151]
[1720852915880,45.0,139.56,139.51,28.151]
[1720852916052,20.0,139.55,139.51,28.151]
[1720852916254,20.0,139.55,139.52,11.6]
[1720852922868,45.0,139.56,139.52,13.03344372]
[1720852923176,45.0,139.56,139.53,11.6]
[1720852923382,45.0,139.57,139.53,11.6]
[1720852924278,45.0,139.57,139.51,16.551]
[1720852924581,45.0,139.57,139.52,11.6]
[1720852928679,56.6,139.57,139.52,11.6]
[1720852933275,10.0,139.6,139.53,1.43338239]
[1720852933591,20.0,139.59,139.54,11.6]
[1720852933757,20.0,139.59,139.54,18.0728]
[1720852933960,16.551,139.65,139.54,18.0728]
[1720852933961,10.0,139.64,139.58,11.6]
[1720852934262,10.0,139.64,139.56,15.8834]
[1720852934263,21.6,139.64,139.59,11.6]
[1720852934773,11.6,139.6,139.56,15.8834]
[1720852935074,11.6,139.61,139.56,27.4834]
[1720852935485,11.6,139.61,139.56,15.8834]
[1720852935785,56.6,139.6,139.56,15.8834]
[1720852936095,31.6,139.59,139.54,18.0728]
[1720852936262,45.0,139.58,139.54,18.0728]
[1720852936581,56.6,139.58,139.54,6.4728]
[1720852937259,45.0,139.58,139.54,18.0728]
[1720852937783,45.0,139.58,139.55,11.6]
[1720852938580,20.0,139.59,139.54,6.4728]
[1720852938581,20.0,139.59,139.56,11.6]
[1720852938780,20.0,139.6,139.56,11.6]
[1720852939201,31.6,139.6,139.55,11.6]
[1720852939762,20.0,139.6,139.55,11.6]
[1720852939994,11.6,139.6,139.55,11.6]
[1720852940589,76.6,139.59,139.54,6.4728]
[1720852940976,76.6,139.59,139.54,18.0728]
[1720852941169,20.0,139.59,139.55,11.6]
[1720852941571,20.0,139.59,139.54,6.4728]
[1720852941780,31.6,139.61,139.56,11.6]
[1720852942096,45.0,139.6,139.56,11.6]
[1720852942392,20.0,139.59,139.56,11.6]
[1720852942698,11.6,139.64,139.58,11.6]
[1720852942879,11.6,139.64,139.59,11.6]
[1720852943261,21.6,139.64,139.57,17.31631834]
[1720852943468,11.6,139.63,139.58,11.6]
[1720852944083,56.6,139.62,139.57,27.4834]
[1720852944890,45.0,139.62,139.57,27.4834]
[1720852945081,56.6,139.63,139.58,11.6]
[1720852945284,20.0,139.62,139.58,11.6]
[1720852946474,20.0,139.62,139.59,11.6]
[1720852946669,45.0,139.63,139.6,11.6]
[1720852947084,45.0,139.64,139.6,11.6]
[1720852947781,23.61520618,139.68,139.6,11.6]
[1720852947987,11.6,139.67,139.62,11.6]
[1720852948295,11.6,139.68,139.63,11.6]
[1720852948481,11.6,139.67,139.62,16.6487]
[1720852948674,10.0,139.68,139.63,6.0055]
[1720852948877,21.6,139.68,139.63,17.6055]
[1720852949269,20.0,139.67,139.63,17.6055]
[1720852950277,31.6,139.67,139.63,17.6055]
[1720852950901,20.0,139.67,139.63,17.6055]
[1720852953791,20.0,139.67,139.64,11.6]
[1720852954094,11.6,139.69,139.64,11.6]
[1720852954095,20.0,139.68,139.64,11.6]
[1720852955374,31.6,139.69,139.64,11.6]
[1720852955695,45.0,139.68,139.64,11.6]
[1720852956003,20.0,139.67,139.64,11.6]
[1720852960093,45.0,139.68,139.64,11.6]
[1720852960281,45.0,139.69,139.64,11.6]
[1720852960483,20.0,139.68,139.64,11.6]
[1720852961702,20.0,139.68,139.63,7.43767239]
[1720852961896,20.0,139.68,139.64,11.6]
[1720852968816,41.6,139.68,139.63,6.0055]
[1720852968996,45.0,139.67,139.63,6.0055]
[1720852969310,56.6,139.67,139.63,6.0055]
[1720852969683,11.6,139.66,139.62,16.6487]
[1720852969989,11.6,139.65,139.6,17.6002]
[1720852970507,11.6,139.64,139.6,6.0002]
[1720852970806,56.6,139.64,139.6,6.0002]
[1720852971516,11.6,139.62,139.58,16.1697]
[1720852972316,11.6,139.61,139.58,16.1697]
[1720852973017,11.6,139.61,139.56,6.0002]
[1720852973311,11.6,139.59,139.56,6.0002]
[1720852973509,11.6,139.59,139.54,27.7697]
[1720852973714,11.6,139.57,139.54,16.1697]
[1720852974307,11.6,139.58,139.54,16.1697]
[1720852974809,11.6,139.59,139.54,27.7697]
[1720852976207,11.6,139.6,139.54,27.7697]
[1720852976436,45.0,139.59,139.54,27.7697]
[1720852976732,65.0,139.59,139.54,27.7697]
[1720852977330,20.0,139.59,139.56,11.6]
[1720852977632,20.0,139.6,139.57,11.6]
[1720852977840,10.0,139.64,139.58,11.6]
[1720852978020,11.6,139.63,139.58,11.6]
[1720852979027,11.6,139.62,139.54,16.1697]
[1720852979227,10.0,139.63,139.55,1.43287653]
[1720852979411,11.6,139.61,139.55,13.03287653]
[1720852980335,31.6,139.62,139.56,11.6]
[1720852980539,31.6,139.62,139.54,16.1697]
[1720852980716,11.6,139.61,139.56,11.6]
[1720852981214,11.6,139.58,139.54,16.1697]
[1720852982031,11.6,139.58,139.54,17.6028542]
[1720852982412,11.6,139.58,139.54,16.1697]
[1720852983321,11.6,139.57,139.54,16.1697]
[1720852983632,11.6,139.56,139.53,6.0002]
[1720852983835,56.4,139.6,139.53,6.0002]
[1720852983836,10.0,139.6,139.53,6.0002]
[1720852984040,11.6,139.56,139.53,6.0002]
[1720852985432,65.0,139.59,139.53,6.0002]
[1720852985617,11.6,139.57,139.53,6.0002]
[1720852986330,11.6,139.58,139.53,17.6002]
[1720852986532,11.6,139.57,139.53,6.0002]
[1720852987315,11.6,139.56,139.53,6.0002]
[1720852988315,20.0,139.55,139.53,6.0002]
[1720852989641,31.6,139.55,139.53,6.0002]
[1720852995152,31.6,139.55,139.5,22.3786]
[1720852995335,11.6,139.54,139.5,22.3786]
[1720852997052,31.6,139.55,139.5,22.3786]
[1720852997847,20.0,139.55,139.5,22.3786]
[1720852998040,11.6,139.55,139.5,33.9786]
[1720852999849,20.0,139.57,139.5,33.9786]
[1720853000029,11.6,139.55,139.5,33.9786]
[1720853001350,56.6,139.56,139.5,33.9786]
[1720853001539,20.0,139.55,139.5,33.9786]
[1720853002235,20.0,139.55,139.5,22.3786]
[1720853002439,31.6,139.55,139.5,33.9786]
[1720853006531,20.0,139.55,139.5,33.9786]
[1720853006735,20.0,139.55,139.51,11.6]
[1720853011335,20.0,139.55,139.5,22.3786]
[1720853011544,31.6,139.55,139.5,33.9786]
[1720853013777,11.6,139.54,139.5,22.3786]
[1720853013963,11.6,139.53,139.5,22.3786]
[1720853014771,11.6,139.52,139.5,22.3786]
[1720853015164,11.6,139.53,139.5,22.3786]
[1720853015976,11.6,139.53,139.5,16.1697]
[1720853021690,10.0,139.54,139.5,16.1697]
[1720853021865,56.6,139.53,139.5,16.1697]
[1720853022483,45.0,139.53,139.5,16.1697]
[1720853024083,56.6,139.53,139.5,16.1697]
[1720853026376,11.6,139.52,139.5,16.1697]
[1720853027501,56.6,139.53,139.5,16.1697]
[1720853028068,20.0,139.55,139.5,16.1697]
[1720853028289,10.0,139.58,139.5,27.7697]
[1720853028507,11.6,139.55,139.5,27.7697]
[1720853029276,11.6,139.56,139.51,13.03342684]
[1720853029880,2.85000388,139.59,139.52,19.41503776]
[1720853030101,11.6,139.58,139.53,11.6]
[1720853030278,21.6,139.58,139.53,11.6]
[1720853030478,10.0,139.6,139.53,11.6]
[1720853030801,11.6,139.58,139.53,11.6]
[1720853031206,10.0,139.6,139.54,13.03317739]
[1720853031370,11.6,139.6,139.55,11.6]
[1720853031571,10.35827352,139.63,139.53,15.4612]
[1720853031572,21.6,139.59,139.53,15.4612]
[1720853031873,11.6,139.58,139.53,27.0612]
[1720853032184,11.6,139.58,139.53,15.4612]
[1720853032378,11.6,139.58,139.53,27.0612]
[1720853033403,11.6,139.57,139.53,15.4612]
[1720853035312,11.6,139.58,139.53,27.0612]
[1720853036891,10.0,139.59,139.53,15.4612]
[1720853037079,76.6,139.58,139.53,27.0612]
[1720853037784,20.0,139.58,139.53,27.0612]
[1720853037980,20.0,139.6,139.55,11.6]
[1720853038187,20.0,139.6,139.56,11.6]
[1720853038393,31.6,139.62,139.57,17.9816]
[1720853038586,11.6,139.62,139.57,17.9816]
[1720853039690,45.0,139.61,139.57,17.9816]
[1720853040595,11.6,139.62,139.57,17.9816]
[1720853042080,21.6,139.61,139.57,6.3816]
[1720853042286,56.6,139.6,139.57,6.3816]
[1720853045504,11.6,139.59,139.57,6.3816]
[1720853045711,11.6,139.59,139.54,11.6]
[1720853047312,56.6,139.6,139.55,11.6]
[1720853048318,45.0,139.6,139.56,11.6]
[1720853049899,11.6,139.61,139.56,11.6]
[1720853051215,2.86825944,139.63,139.57,13.03288484]
[1720853051509,21.6,139.63,139.58,11.6]
[1720853051718,76.6,139.62,139.57,11.6]
[1720853052109,76.6,139.62,139.56,11.6]
[1720853053104,11.6,139.61,139.55,11.6]
[1720853053614,76.6,139.62,139.53,21.8551]
[1720853053799,76.6,139.62,139.56,11.6]
[1720853054319,76.1,139.62,139.56,11.6]
[1720853055122,11.6,139.61,139.53,21.8551]
[1720853055306,11.6,139.61,139.55,11.6]
[1720853055999,11.6,139.6,139.53,21.8551]
[1720853056341,10.0,139.61,139.54,11.6]
[1720853056342,11.6,139.59,139.54,11.6]
[1720853056918,11.6,139.6,139.55,11.6]
[1720853057927,76.1,139.62,139.56,13.03293846]
[1720853058106,76.1,139.62,139.56,11.6]
[1720853058307,21.6,139.61,139.56,11.6]
[1720853058606,45.0,139.6,139.55,11.6]
[1720853058814,45.0,139.6,139.56,11.6]
[1720853061908,56.6,139.6,139.56,11.6]
[1720853062113,56.6,139.6,139.55,11.6]
[1720853065308,45.0,139.6,139.56,11.6]
[1720853065515,56.6,139.61,139.56,11.6]
[1720853065722,45.0,139.61,139.57,11.6]
[1720853071134,56.6,139.61,139.54,1.43303981]
[1720853071334,56.6,139.61,139.56,11.6]
[1720853071533,56.6,139.61,139.54,1.43303981]
[1720853071838,56.6,139.61,139.55,11.6]
[1720853072023,56.6,139.61,139.53,21.8551]
[1720853072211,56.6,139.61,139.55,11.6]
[1720853072832,56.6,139.61,139.56,1.4329223]
[1720853073325,56.6,139.61,139.56,13.0329223]
[1720853073530,56.6,139.61,139.56,11.6]
[1720853074119,34.51084176,139.62,139.56,11.6]
[1720853074914,11.6,139.61,139.56,11.6]
[1720853075614,34.51084176,139.62,139.56,11.6]
[1720853077713,11.6,139.61,139.56,11.6]
[1720853079217,11.6,139.61,139.55,11.6]
[1720853079721,11.6,139.6,139.55,11.6]
[1720853080211,11.6,139.6,139.54,11.6]
[1720853081238,21.6,139.59,139.53,21.8551]
[1720853081448,56.6,139.58,139.53,33.4551]
[1720853081747,11.6,139.57,139.49,21.5709]
[1720853082039,45.0,139.56,139.52,11.6]
[1720853082250,56.6,139.56,139.51,11.6]
[1720853083518,11.6,139.56,139.51,11.6]
[1720853083725,11.6,139.58,139.53,11.6]
[1720853083953,20.0,139.57,139.52,1.43343686]
[1720853084120,20.0,139.57,139.54,11.6]
[1720853084520,31.6,139.58,139.53,11.6]
[1720853085239,20.0,139.58,139.54,11.6]
[1720853086548,20.0,139.58,139.49,21.5709]
[1720853086549,21.6,139.61,139.56,11.6]
[1720853086740,20.0,139.6,139.56,11.6]
[1720853086938,31.6,139.6,139.55,11.6]
[1720853087760,56.6,139.59,139.54,11.6]
[1720853088454,11.6,139.58,139.49,21.5709]
[1720853088636,11.6,139.58,139.5,20.0]
[1720853088858,56.6,139.57,139.52,11.6]
[1720853089068,11.6,139.57,139.52,11.6]
[1720853090544,56.6,139.56,139.49,21.5709]
[1720853090761,56.6,139.56,139.5,11.6]
[1720853092249,56.6,139.56,139.5,13.03345309]
[1720853092868,45.0,139.56,139.52,11.6]
[1720853093169,11.6,139.57,139.52,11.6]
[1720853093541,11.6,139.57,139.51,11.6]
[1720853093753,45.0,139.56,139.51,11.6]
[1720853096658,11.6,139.57,139.52,1.43339783]
[1720853096840,11.6,139.57,139.52,13.03339783]
[1720853097036,11.6,139.57,139.52,11.6]
[1720853098965,20.0,139.6,139.54,11.6]
[1720853099156,45.0,139.59,139.55,11.6]
[1720853099337,20.0,139.58,139.55,11.6]
[1720853099535,20.0,139.58,139.54,11.6]
[1720853099867,20.0,139.58,139.53,11.6]
[1720853100250,31.6,139.58,139.53,11.6]
[1720853100871,20.0,139.58,139.53,11.6]
[1720853102456,31.6,139.58,139.53,11.6]
[1720853102994,20.0,139.58,139.53,11.6]
[1720853105477,20.0,139.58,139.54,11.6]
[1720853106787,45.0,139.59,139.55,11.6]
[1720853107376,56.6,139.6,139.55,11.6]
[1720853107555,20.0,139.59,139.55,11.6]
[1720853108369,11.6,139.58,139.5,1.43317034]
[1720853108568,45.0,139.57,139.52,11.6]
[1720853109157,56.6,139.57,139.52,11.6]
[1720853109364,11.6,139.56,139.51,11.6]
[1720853110890,45.0,139.57,139.51,11.6]
[1720853111069,11.6,139.57,139.51,11.6]
[1720853111414,45.0,139.56,139.51,11.6]
[1720853111958,56.6,139.56,139.5,20.0]
[1720853112161,56.6,139.56,139.5,31.6]
[1720853112162,11.6,139.55,139.5,31.6]
[1720853113170,56.6,139.56,139.51,11.6]
[1720853113483,45.0,139.56,139.52,11.6]
[1720853114477,20.0,139.59,139.54,11.6]
[1720853114683,11.6,139.59,139.54,11.6]
[1720853114858,20.0,139.58,139.54,11.6]
[1720853115262,20.0,139.58,139.55,11.6]
[1720853115479,20.0,139.59,139.55,11.6]
[1720853116083,31.6,139.59,139.54,11.6]
[1720853120295,20.0,139.59,139.54,11.6]